Cogmind - Beta 13 @@@ ROGUE MODE // 2024.05.06 @ 16:17:01 Player: Compound1080 Result: Destroyed by as-05149 with Assembled Rifle Performance ------------- Evolutions (0) 0 Regions Visited (2) 400 Robots Destroyed (6) 30 Value Destroyed (209) 209 Prototype IDs (0) 0 Alien Tech Used (0) 0 Bonus (0) 0 TOTAL SCORE: 639 Bonus ------- None Cogmind --------- Core Integrity 0/250 Matter 298/300 Energy 250/250 System Corruption 0% Temperature Cool (0) Movement Rolling (100) Location -10/Mines Parts ------- > --- POWER (1) -------- Ion Engine > --- PROPULSION (2) --- Compact Wheel Compact Wheel > --- UTILITY (2) ------ Small Storage Unit > --- WEAPON (2) ------- Light Assault Rifle > --- INVENTORY (8) ---- Aluminum Leg Flight Unit Flight Unit Flight Unit Flight Unit Rocket Launcher Peak State ------------ > --- POWER ------------ Light Ion Engine > --- PROPULSION ------- Aluminum Leg Aluminum Leg > --- UTILITY ---------- Small Storage Unit > --- WEAPON ----------- Medium Laser Light Assault Rifle > --- INVENTORY -------- Ion Engine Aluminum Leg Compact Wheel Flight Unit Flight Unit Flight Unit Flight Unit [Rating: 6] Favorites ----------- Power Light Ion Engine Engine Light Ion Engine Propulsion Aluminum Leg Leg Aluminum Leg Wheel Compact Wheel Flight Unit Flight Unit Utility Small Storage Unit Storage Small Storage Unit Weapon Light Assault Rifle Energy Gun Medium Laser Ballistic Gun Light Assault Rifle Launcher Rocket Launcher Build | -11 -10 -10 ------- Run | Yrd Mat Min Slots Evolved . | . . . Power . | . . . Propulsion . | . . . Utility . | . . . Weapon . | . . . Parts Attached 17 | 4 3 10 Power 2 | 1 . 1 Engine 2 | 1 . 1 Core . | . . . Reactor . | . . . Propulsion 8 | 1 2 5 Treads . | . . . Leg 3 | 1 1 1 Wheel 2 | . . 2 Hover . | . . . Flight 3 | . 1 2 Utility 1 | 1 . . Device . | . . . Storage 1 | 1 . . Processor . | . . . Hackware . | . . . Protection . | . . . Artifact . | . . . Weapon 6 | 1 1 4 Energy Gun 1 | . 1 . Energy Cannon . | . . . Ballistic Gun 4 | 1 . 3 Ballistic Cannon . | . . . Launcher 1 | . . 1 Special Weapon . | . . . Impact Weapon . | . . . Slashing Weapon . | . . . Piercing Weapon . | . . . Special Melee Weapon . | . . . Unidentified Prototypes . | . . . Parts Lost 7 | . . 7 Power 1 | . . 1 Propulsion 3 | . . 3 Utility . | . . . Weapon 3 | . . 3 Highest Loss Streak 5 | . . 5 To Critical Strikes . | . . . Average Slot Usage (%) 71 | . 74 67 Engine 13 | . 14 13 Leg 19 | . 27 11 Wheel 2 | . . 5 Flight 1 | . . 2 Storage 14 | . 14 14 Energy Gun 4 | . 4 4 Ballistic Gun 14 | . 14 14 Naked Turns . | . . . Heaviest Build 14 | 9 11 14 Greatest Support 32 | 10 20 32 Greatest Overweight (x) 3 | 2 . 3 Average Overweight (x) . | . . . Largest Inventory Capacity 8 | 8 8 8 Average Capacity 7 | 7 8 8 Most Carried 8 | 5 8 8 Average Carried 6 | 2 7 6 Final Capacity 8 | 8 8 8 Final Carried 7 | 5 7 6 Class Distribution -------------------- 100% | Mutant Dominant Class ---------------- Mutant | -10/Materials Mutant | -10/Mines Resources | -11 -10 -10 ----------- Run | Yrd Mat Min Matter Collected 428 | 201 90 137 Remotely . | . . . Salvage Created 196 | . 136 60 Parts 8 | . 8 . Haulers Intercepted . | . . . Recyclers Shooed . | . . . Parts Field Recycled . | . . . Retrieved Matter . | . . . Parts Self-Destructed . | . . . Prevented . | . . . Kills | -11 -10 -10 ------- Run | Yrd Mat Min Combat Hostiles Destroyed 9 | . 3 6 Guns 8 | . 3 5 AOE 1 | . . 1 Classes Destroyed 4 | . 2 2 Worker 1 | . 1 . Grunt 3 | . 3 . Demolisher 2 | . . 2 Assembled 4 | . . 4 Best Kill Streak 3 | . 3 2 Combat Bots Only 2 | . 1 2 Max Kills in Single Turn 1 | . 1 1 Gunslinging . | . . . Exploded 1 | . . 1 Melee . | . . . Uniques/NPCs Destroyed . | . . . Combat | -11 -10 -10 -------- Run | Yrd Mat Min Hostile Shots Fired 67 | . 28 39 Missed 13 | . 6 7 Damage Taken 892 | . 242 650 Core 254 | . 44 210 Absorbed by Shields . | . . . Core Remaining (%) 100 | 100 . . Volleys Fired 60 | . 21 39 Largest 2 | . 2 2 Hottest 70 | . 70 70 Shots Fired 85 | . 34 51 Gun 84 | . 34 50 Cannon . | . . . Launcher 1 | . . 1 Special . | . . . Kinetic 65 | . 21 44 Thermal 19 | . 13 6 Explosive 1 | . . 1 Electromagnetic . | . . . Robot Hit Streak 10 | . 8 10 Robot Miss Streak 4 | . 3 4 Penetration Max . | . . . Secondary Targets 1 | . 1 . Max Gunslinging Chain 1 | . 1 . Shots Hit Robots 49 | . 23 26 Core Hits 24 | . 8 16 Critical Kills . | . . . Critical Parts Destroyed . | . . . Critical Strikes . | . . . Melee Attacks . | . . . Impact . | . . . Slashing . | . . . Piercing . | . . . Sneak Attacks . | . . . Combat Hostiles . | . . . Follow-up Attacks . | . . . Damage Inflicted 470 | . 220 250 Guns 452 | . 220 232 Cannons . | . . . Explosions 13 | . . 13 Melee . | . . . Ramming 5 | . . 5 Kinetic 275 | . 105 170 Thermal 177 | . 115 62 Explosive 13 | . . 13 Electromagnetic . | . . . Impact . | . . . Slashing . | . . . Piercing . | . . . Highest Corruption . | . . . Average Corruption . | . . . Corruption Purged . | . . . Corruption Blocked . | . . . Overload Shots . | . . . Overflow Damage . | . . . Projectiles . | . . . Explosions . | . . . Melee . | . . . Knockbacks . | . . . Impact . | . . . Kinetic . | . . . Secondary . | . . . Self-Inflicted Damage 2 | . . 2 Shots . | . . . Rammed 1 | . . 1 Targets Rammed 1 | . . 1 Kicked . | . . . Crushed . | . . . Highest Temperature 188 | . 188 45 Average Temperature 69 | . 85 23 Received Heat Transfer 132 | . 132 . Siege Activations . | . . . Robots Corrupted . | . . . Combat Hostiles . | . . . Parts Fried . | . . . Impact Corruptions . | . . . Robots Melted . | . . . Combat Hostiles . | . . . Parts Melted 2 | . 2 . Heat Transferred 518 | . 333 185 Parts Sabotaged . | . . . Parts Stolen . | . . . Parts Stripped . | . . . Power Chain Reactions . | . . . Alert | -11 -10 -10 ------- Run | Yrd Mat Min Peak Influence 120 | . 120 69 Initial 46 | . . 46 Average 42 | . 45 52 Maximum Alert Level . | . . . Low Security (%) 100 | 100 100 100 Level 1 . | . . . Level 2 . | . . . Level 3 . | . . . Level 4 . | . . . Level 5 . | . . . High Security . | . . . Max Security . | . . . Squads Dispatched 1 | . 1 . Investigation . | . . . Extermination . | . . . Reinforcement 1 | . 1 . Assault . | . . . Garrison . | . . . Intercept . | . . . Searches Triggered . | . . . Construction Impeded . | . . . Haulers Reinforced . | . . . Active Scanning Responses . | . . . Cargo Convoy Interrupts . | . . . Stealth | -11 -10 -10 --------- Run | Yrd Mat Min Distress Signals 2 | . 2 . Communications Jammed . | . . . Distress Signals . | . . . Times Spotted 14 | . 7 7 Peak Tracking Total 3 | . 3 2 Tactical Retreats . | . . . Traps | -11 -10 -10 ------- Run | Yrd Mat Min Traps Triggered . | . . . Indirectly . | . . . Trap Hack Attempts . | . . . Triggered . | . . . Disarmed . | . . . Reprogrammed . | . . . Reused . | . . . Traps Extracted . | . . . Installed . | . . . Triggered . | . . . Machines | -11 -10 -10 ---------- Run | Yrd Mat Min Machines Disabled . | . . . Max in Single Turn . | . . . Machines Repaired . | . . . Machines Dismantled . | . . . Machines Sabotaged . | . . . Overloaded Fab Kills . | . . . Hacking | -11 -10 -10 --------- Run | Yrd Mat Min Machines Accessed 1 | . 1 . Terminals 1 | . 1 . Fabricators . | . . . Repair Stations . | . . . Recycling Units . | . . . Scanalyzers . | . . . Garrison Access . | . . . Total Hacks 2 | . 2 . Successful 2 | . 2 . Failed . | . . . Catastrophic . | . . . Database Lockouts . | . . . Manual . | . . . Terminals 2 | . 2 . Fabricators . | . . . Repair Stations . | . . . Recycling Units . | . . . Scanalyzers . | . . . Garrison Access . | . . . Terminal Hacks 2 | . 2 . Locate Traps 1 | . 1 . Zone Layout 1 | . 1 . Fabricator Hacks . | . . . Repair Station Hacks . | . . . Recycling Unit Hacks . | . . . Scanalyzer . | . . . Garrison Access Hacks . | . . . Unauthorized Hacks . | . . . Terminals . | . . . Fabricators . | . . . Repair Stations . | . . . Recycling Units . | . . . Scanalyzers . | . . . Garrison Access . | . . . Data Cores Recovered . | . . . Used . | . . . Hacking Detections . | . . . Full Trace Events . | . . . Feedback Events . | . . . Feedback Blocked . | . . . Robot Schematics Acquired . | . . . Robots Built . | . . . Authchips . | . . . Time . | . . . Total Robot Build Rating . | . . . Part Schematics Acquired . | . . . Parts Built . | . . . Authchips . | . . . Time . | . . . Total Part Build Rating . | . . . Parts Repaired . | . . . Time . | . . . Parts Recycled . | . . . Recycled Matter . | . . . Retrieved Matter . | . . . Retrieved Components . | . . . Parts Scanalyzed . | . . . Part Schematics Acquired . | . . . Parts Damaged . | . . . Bothacking | -11 -10 -10 ------------ Run | Yrd Mat Min Used RIF Installer . | . . . Robots Hacked . | . . . Non-combat . | . . . Combat . | . . . Robot Hacks Applied . | . . . Relay Couplers Released . | . . . Fabnet Peak Effective % . | . . . Robots Rewired . | . . . Allies Hacked . | . . . Hacks Repelled . | . . . Allies | -11 -10 -10 -------- Run | Yrd Mat Min Total Allies . | . . . Largest Group . | . . . Highest-Rated Group . | . . . Highest-Rated Ally . | . . . Total Orders . | . . . Ally Attacks . | . . . Total Damage . | . . . Kills . | . . . Allies Corrupted . | . . . Allies Melted . | . . . Intel | -11 -10 -10 ------- Run | Yrd Mat Min Robot Analysis Total . | . . . Derelict Logs Recovered 1 | . . 1 Drone Launches . | . . . Drone Recoveries . | . . . Exploration | -11 -10 -10 ------------- Run | Yrd Mat Min Turns Passed 618 | 80 259 279 Spaces Moved 323 | 59 147 117 Core 23 | 13 . 10 Treads . | . . . Legs 266 | 46 147 73 Wheels 22 | . . 22 Hover . | . . . Flight 12 | . . 12 Fastest Speed 50 | 50 120 100 Average Speed 125 | 114 120 138 Slowest Speed 200 | 150 120 200 Overloaded Moves . | . . . Propulsion Burnouts . | . . . Robots Hopped . | . . . Cave-ins Triggered . | . . . Exploration Rate (%) 22 | 5 37 24 Regions Visited 2 Branch Regions 1 Pre-discovered Areas 1 | . . 1 Known Exits Taken . | . . . Unknown Exits Taken 2 | 1 1 . Scrap Searched 1 | . . 1 Spaces Dug . | . . . Terrain Destroyed 9 | . . 9 Melee . | . . . Projectile . | . . . AOE 9 | . . 9 Terrain Rammed . | . . . Walls Destroyed . | . . . Machines Disabled . | . . . Actions | -11 -10 -10 --------- Run | Yrd Mat Min Total 462 | 71 200 191 Wait 38 | . 22 16 Move 321 | 58 146 117 Hop . | . . . Pick Up 20 | 9 5 6 Fast Attach 1 | . 1 . Attach 13 | 4 2 7 Detach 1 | . . 1 Swap 3 | . . 3 Drop 3 | . 2 1 Fire 60 | . 21 39 Melee . | . . . Ram 1 | . . 1 Kick . | . . . Crush . | . . . Escape Stasis . | . . . Rewire 1 | . 1 . Trap . | . . . Miscellaneous . | . . . Route ------- -11/Scrapyard -10/Materials (discovered 2 exits: [Mat] / [*Min]) -10/Mines History --------- Turn | Location | Event 24 | -11/Scrapyard | Discovered new exit (range 15) 81 | -11/Scrapyard | Entered Materials 229 | -10/Materials | Discovered new exit (range 15) 302 | -10/Materials | Build established: Mutant 322 | -10/Materials | Discovered new exit (range 16) 340 | -10/Materials | Entered Mines 341 | -10/Mines | Assembled infested the area 346 | -10/Mines | Assisted by a Guerilla fighting off Assembled 347 | -10/Mines | Received a Rocket Launcher from a helpful Derelict 405 | -10/Mines | Learned location of Zion (-7) 431 | -10/Mines | Core integrity fell below 50% 463 | -10/Mines | Lost 5 parts (1p2n2w) 607 | -10/Mines | Core integrity fell below 20% 619 | -10/Mines | Destroyed by as-05149 with Assembled Rifle Last Messages --------------- 00560_ U-05 Engineer lays Concrete. 00561_ U-05 Engineer builds a Wall. 00562_ Acquired Com. Wheel. 00562_ K-01 Serf cleans the Core Extractor. 00565_ Acquired 10 matter. 00565_ K-01 Serf cleans the Core Extractor. 00566_ U-05 Engineer lays Concrete. 00567_ Acquired 10 matter. 00567_ U-05 Engineer lays Concrete. 00568_ Acquired 10 matter. 00568_ U-05 Engineer lays Concrete. 00569_ K-01 Serf collects debris. 00570_ U-05 Engineer builds a Wall. 00571_ Slammed into K-01 Serf. 00578_ K-01 Serf Wheel severed. 00585_ Acquired Aluminum Leg. 00590_ as-27566 destroyed. 00591_ Acquired 3 matter. 00607_ as-51885 destroyed. 00618_ Acquired 10 matter. Map ----- +----------------------------------------------------+ | ????????????????????????### # # ## "" """ | | ??????????????????????????## # # ### | | ???????????????????????????## # ##?## | | ????????????????????????????## ##??# | | ?????????????????????????????#######??### #### | | ??????????????????????????????????????# # ### #? | | ??????????????????????????????????????# ## # #? | | ???????????????????????????###????????# ?# # ###? | | ??????????????????????????## ##??????## ## ## ##? | | ?????????????????????????## ##??????# # ####? | | ?????????????????????????# ##?????## * #??? | | ?????????????????????????# ######?### ###### | | ??????????????????????????# ## ##### % % # | | ????????????????????????????# ## %#### # | | ?????????????????????##??????# % # #??? | | ????????????????????? ?????## """ ##??? | | ?????????????????????# ###### """ % # #???? | | ?????????????????????# = """ !#########???? | | ?????????????????????## ?# % ###???????????? | | ?????????????????????? ?# #####?????????????? | | ??????????????????????#a### #####??????????????? | | ??????????????????????# #??????????????? | | ??????????????????????# """ """ #??????????????? | | ??????????????????????# """ """ #??????????????? | | ??????????????????????# "" """ #??????????????? | | ??????????????????????# @ #??????????????? | | ??????????????????????# #??????????????? | | ??????????????????????# !% #??????????????? | | ??????????????????????# %% #??????????????? | | ??????????????????????#############??????????????? | | ?????????????????????????????????????????????????? | | ?????????????????????????????????????????????????? | | ?????????????????????????????????????????????????? | | ?????????????????????????????????????????????????? | | ?????????????????????????????????????????????????? | | ?????????????????????????????????????????????????? | | ?????????????????????????????????????????????????? | | ?????????????????????????????????????????????????? | | ?????????????????????????????????????????????????? | | ?????????????????????????????????????????????????? | | ?????????????????????????????????????????????????? | | ?????????????????????????????????????????????????? | | ?????????????????????????????????????????????????? | | ?????????????????????????????????????????????????? | | ?????????????????????????????????????????????????? | | ?????????????????????????????????????????????????? | | ?????????????????????????????????????????????????? | | ?????????????????????????????????????????????????? | | ?????????????????????????????????????????????????? | | ?????????????????????????????????????????????????? | +----------------------------------------------------+ Best States ------------- Heat Dissipation 25 Energy Generation 10 Energy Capacity 250 Matter Stores 300 Matter Capacity 300 Sight Range 16 Terrain Scan Density 10 Evasion (%) 55 Item Schematics ----------------- None Robot Schematics ------------------ None Fabricated ------------ Nothing Alien Tech Used ----------------- None Achievements -------------- None Challenges ------------ None Game ------ Seed ForceMiniCompactor Manual? 0 Play Time 00:08:01 Cumulative 12.4 hours Start 2024.05.06 @ 16:09:12 End 2024.05.06 @ 16:17:01 Sessions 1 Manual Loads 0 Difficulty Rogue Special Mode None Game No. 25 Rogue 25 Adventurer 0 Explorer 0 Win Type - Total 0 Types 0/0/0/0/0/0/0/0/0 Lore% 16 Gallery% 16 Achievement% 15 Wizard Run 0 Options --------- Layout 1 ASCII 0 Keyboard 0 Movement Mouse Keybinds 0 Fullscreen 2 Font 24/Smallcaps Map View 50x35 Zoom Use 0% Tactical HUD 1 Map Filters NONE Filters NONE Steam 1 RUN: b5a67181-0889-4a11-99a3-fd0bf91d618c